bitfinex/quotes_SOLUSD_20250814
["timestamp","ask_amount","ask_price","bid_price","bid_amount"]
[1755195919313,0.69,192.56,192.55,42.14]
[1755195920333,0.69,192.56,192.55,55.43480175]
[1755195920513,0.69,192.61,192.55,75.73447356]
[1755195920712,0.69,192.61,192.58,13.29480175]
[1755195920912,0.69,192.6,192.58,55.33480175]
[1755195921334,0.69,192.59,192.58,42.04]
[1755195921540,0.69,192.63,192.58,60.52743257]
[1755195921736,0.69,192.62,192.61,13.29480175]
[1755195922033,0.69,192.62,192.61,55.31480175]
[1755195922540,0.69,192.62,192.61,42.02]
[1755195922938,0.69,192.62,192.61,55.31480175]
[1755195923156,0.69,192.64,192.61,60.50659288]
[1755195923327,0.2,192.66,192.62,13.29480175]
[1755195923510,0.69,192.63,192.62,13.29480175]
[1755195923715,0.89,192.66,192.62,55.25480175]
[1755195923937,0.89,192.66,192.65,13.29480175]
[1755195924258,0.2,192.66,192.65,55.23480175]
[1755195924926,0.2,192.66,192.65,60.42556219]
[1755195926634,1e-08,192.67,192.66,55.35590582]
[1755195926831,0.06,192.69,192.68,72.23621557]
[1755195927137,0.06,192.69,192.68,128.38580419]
[1755195927341,0.06,192.69,192.68,127.86680897]
[1755195927722,0.06,192.69,192.68,96.73680897]
[1755195928534,0.06,192.69,192.68,76.36064115]
[1755195929118,0.06,192.69,192.68,81.5505934]
[1755195929337,0.06,192.69,192.68,96.65680897]
[1755195929917,0.75,192.69,192.68,76.36064115]
[1755195930427,0.75,192.69,192.68,50.36064115]
[1755195930627,0.75,192.69,192.55,0.07]
[1755195930826,9.31064115,192.69,192.63,8.56064115]
[1755195931034,5.19022162,192.67,192.58,5.19264721]
[1755195931232,0.69,192.66,192.61,8.56064115]
[1755195931415,13.75086277,192.67,192.62,41.72]
[1755195931620,0.69,192.65,192.64,8.56064115]
[1755195931842,0.69,192.68,192.64,50.28064115]
[1755195932036,0.06,192.69,192.6,26.0]
[1755195932037,9.25064115,192.67,192.6,26.0]
[1755195932242,0.69,192.66,192.61,50.26064115]
[1755195932419,0.69,192.68,192.65,8.56064115]
[1755195932616,0.06,192.69,192.66,41.74]
[1755195933039,0.06,192.69,192.68,5.18995225]
[1755195933242,0.06,192.69,192.68,46.92995225]
[1755195933444,0.06,192.69,192.68,55.4905934]
[1755195933756,0.06,192.69,192.68,70.59680897]
[1755195934044,0.06,192.69,192.68,71.11580419]
[1755195934451,0.06,192.69,192.68,70.59680897]
[1755195934656,0.06,192.69,192.68,70.65680897]
[1755195936650,0.06,192.69,192.68,71.17580419]
[1755195937457,0.06,192.69,192.68,71.21580419]
[1755195937635,0.06,192.7,192.69,23.66685672]
[1755195939455,0.06,192.7,192.69,28.85653963]
[1755195940823,0.06,192.71,192.69,28.85653963]
[1755195941130,1e-08,192.75,192.71,72.23621557]
[1755195941337,4.26654307,192.99,192.71,72.23621557]
[1755195941338,0.69,192.85,192.82,26.0]
[1755195941527,8.56064115,192.91,192.84,8.56064115]
[1755195941750,0.69,192.88,192.87,8.56064115]
[1755195941927,0.69,192.88,192.87,41.52]
[1755195942548,0.69,192.88,192.87,50.08064115]
[1755195942768,0.69,192.91,192.87,50.08064115]
[1755195942932,0.69,192.91,192.9,8.56064115]
[1755195943122,0.69,192.91,192.9,65.32685672]
[1755195943328,0.69,192.94,192.92,15.10621557]
[1755195943531,34.56064115,193.02,192.93,50.18064115]
[1755195943853,34.56064115,193.02,192.95,8.56064115]
[1755195944052,34.56064115,193.02,192.93,41.62]
[1755195944053,0.69,193.01,192.96,50.18064115]
[1755195944637,5.18028276,193.04,192.99,8.56064115]
[1755195944836,5.18028276,193.04,192.99,41.56]
[1755195944837,0.69,193.0,192.99,41.56]
[1755195945243,5.1797543,193.06,192.99,50.12064115]
[1755195945450,0.69,193.02,192.99,50.12064115]
[1755195945630,0.69,193.02,193.01,8.56064115]
[1755195945830,0.69,193.02,193.01,50.14064115]
[1755195946052,0.69,193.02,193.01,41.58]
[1755195946652,0.69,193.02,193.01,50.14064115]
[1755195946952,0.69,193.02,193.01,54.82886307]
[1755195947140,0.69,193.02,193.01,41.58]
[1755195947339,0.69,193.02,193.01,54.82886307]
[1755195947840,5.8709246,193.02,192.89,5.18430193]
[1755195948045,13.24886307,193.0,192.94,13.24886307]
[1755195948233,0.69,192.99,192.96,13.24886307]
[1755195948434,0.69,192.98,192.95,41.46]
[1755195948627,0.69,192.98,192.96,13.24886307]
[1755195948841,0.69,192.97,192.96,13.24886307]
[1755195949057,0.69,192.97,192.95,41.46]
[1755195949330,15.10621557,193.08,192.96,13.24886307]
[1755195949331,5.18027351,193.04,192.96,13.24886307]
[1755195949536,0.69,193.0,192.97,41.46]
[1755195949741,0.69,193.0,192.99,13.24886307]
[1755195949959,0.69,193.0,192.99,54.64886307]
[1755195951134,0.69,193.03,192.99,59.83045218]
[1755195951333,5.17976752,193.06,192.99,41.4]
[1755195951334,0.69,193.02,192.99,41.4]
[1755195951534,0.69,193.02,193.01,13.24886307]
[1755195951766,18.42863059,193.06,193.01,41.34]
[1755195952147,13.93886307,193.05,193.01,41.34]
[1755195952352,13.24886307,193.03,192.97,39.24886307]
[1755195952680,13.24886307,192.98,192.94,13.308864]
[1755195952972,0.69,192.97,192.92,54.54886307]
[1755195953180,0.69,192.97,192.95,13.24886307]
[1755195953382,13.93886307,192.96,192.86,50.568863]
[1755195953578,13.24886307,192.93,192.86,50.568863]
[1755195953782,0.69,192.92,192.87,41.6]
[1755195954093,0.69,192.91,192.87,41.6]
[1755195954253,0.69,192.91,192.87,54.84886307]
[1755195954455,0.69,192.93,192.87,41.6]
[1755195954653,18.43220948,192.93,192.87,41.6]
[1755195954854,0.69,192.92,192.87,41.6]
[1755195955058,0.69,192.91,192.87,41.6]
[1755195955292,0.69,192.91,192.89,13.24886307]
[1755195955453,0.69,192.94,192.9,13.24886307]
[1755195955654,0.69,192.93,192.9,54.80886307]
[1755195955963,0.69,192.92,192.9,54.80886307]
[1755195956360,0.69,192.92,192.9,41.56]
[1755195956800,0.69,192.95,192.91,13.24886307]
[1755195956958,13.24886307,192.98,192.94,13.24886307]
[1755195956959,0.69,192.98,192.94,13.24886307]
[1755195957156,0.69,192.97,192.94,13.24886307]
[1755195958093,0.69,192.97,192.96,13.24886307]
[1755195958256,0.06,193.04,192.96,54.72886307]
[1755195958257,0.69,193.0,192.96,54.72886307]
[1755195958582,18.42965959,193.03,192.96,54.72886307]
[1755195958583,0.69,192.99,192.97,13.24886307]
[1755195958877,0.06,193.02,192.97,13.24886307]
[1755195959076,0.69,193.01,192.99,13.24886307]
[1755195959270,0.69,193.0,192.99,41.44]
[1755195959873,0.06,193.02,192.99,54.68886307]
[1755195960097,0.69,193.01,192.93,15.10621557]
[1755195960257,0.69,193.01,192.94,41.44]
[1755195960586,0.69,193.01,192.98,13.24886307]
[1755195960784,0.06,193.02,192.99,54.66886307]
[1755195960990,0.06,193.02,193.01,13.24886307]
[1755195961285,0.06,193.02,193.0,41.44]
[1755195961286,0.06,193.02,193.0,54.68886307]
[1755195961460,0.06,193.02,193.0,41.44]
[1755195961662,0.06,193.02,193.01,13.24886307]
[1755195961883,0.06,193.02,193.0,41.44]
[1755195962082,0.06,193.02,193.01,13.24886307]
[1755195962290,0.06,193.02,193.01,28.35507864]
[1755195962504,0.06,193.02,193.01,29.04507864]
[1755195962685,0.06,193.02,193.01,34.22615734]
[1755195963098,0.06,193.02,193.01,20.97729427]
[1755195963305,0.06,193.02,193.01,34.22615734]
[1755195964786,1e-08,193.02,193.01,34.22615734]
[1755195965289,0.06,193.06,193.04,15.10621557]
[1755195965485,0.06,193.06,193.05,70.38507864]
[1755195966690,0.06,193.06,193.05,69.69507864]
[1755195967788,0.06,193.06,193.05,100.82507864]
[1755195967982,0.77,193.06,193.05,13.24886307]
[1755195968187,0.77,193.06,193.05,54.48886307]
[1755195968383,0.06,193.06,193.05,41.24]
[1755195968694,0.06,193.06,193.05,49.7717883]
[1755195969288,0.06,193.06,193.02,34.5317883]
[1755195969289,0.77,193.06,193.02,34.5317883]
[1755195969484,0.06,193.06,193.04,8.5317883]
[1755195969685,0.77,193.06,193.05,49.7717883]
[1755195969875,0.06,193.06,193.05,41.24]
[1755195970271,0.06,193.06,192.91,0.69]
[1755195970272,8.5917883,193.06,192.91,0.69]
[1755195970586,13.7123195,193.04,192.98,8.5317883]
[1755195970785,0.71,193.03,192.99,41.24]
[1755195970985,8.5317883,193.01,192.97,41.24]
[1755195971298,0.71,193.0,192.97,41.24]
[1755195971469,0.71,192.99,192.97,41.24]
[1755195971668,18.13121499,193.04,192.97,41.24]
[1755195971669,0.71,192.98,192.97,41.24]
[1755195971870,9.2417883,192.98,192.91,8.5317883]
[1755195972079,9.2417883,192.97,192.92,41.24]
[1755195972291,0.71,192.96,192.94,8.5317883]
[1755195972488,0.71,193.01,192.95,49.7717883]
[1755195972680,5.18134715,193.0,192.96,54.49421885]
[1755195972879,5.18134715,193.0,192.96,41.24]
[1755195972880,0.71,192.99,192.96,41.24]
[1755195973071,0.71,192.98,192.96,41.24]
[1755195973276,0.71,192.97,192.96,41.24]
[1755195973672,0.71,193.0,192.96,41.24]
[1755195973912,0.71,192.99,192.96,41.24]
[1755195974078,0.71,192.98,192.96,41.24]
[1755195974387,0.77,193.03,192.97,13.25421885]
[1755195974597,0.06,193.03,193.02,18.43502912]
[1755195974783,0.06,193.03,193.02,59.67502912]
[1755195974979,0.06,193.03,193.02,75.47124469]
[1755195975381,0.06,193.03,193.02,74.78124469]
[1755195975908,0.06,193.03,193.02,75.47124469]
[1755195976102,0.06,193.06,193.02,88.42327038]
[1755195976291,0.06,193.06,193.05,39.25421885]
[1755195976596,13.25421885,193.19,193.06,15.10621557]
[1755195976781,0.71,193.15,193.07,5.17946858]
[1755195976983,0.71,193.15,193.08,41.24]
[1755195977187,0.71,193.15,193.06,13.25421885]
[1755195977188,13.25421885,193.12,193.06,13.25421885]
[1755195977394,0.71,193.11,193.07,41.24]
[1755195977590,13.25421885,193.13,193.07,54.49421885]
[1755195977805,0.71,193.13,193.1,13.25421885]
[1755195977998,0.71,193.12,193.1,41.24]
[1755195978172,13.25421885,193.14,193.08,13.25421885]
[1755195978382,0.71,193.11,193.08,13.25421885]
[1755195978581,18.12070072,193.15,193.08,54.49421885]
[1755195978803,0.71,193.24,193.15,15.10621557]
[1755195978987,0.71,193.24,193.14,13.25421885]
[1755195978988,0.71,193.24,193.21,13.25421885]
[1755195979192,0.71,193.24,193.18,15.10621557]
[1755195979193,0.71,193.24,193.23,13.25421885]
[1755195979908,0.71,193.24,193.22,13.25421885]
[1755195980095,5.88514859,193.24,193.22,13.25421885]
[1755195980299,0.71,193.28,193.23,13.25421885]
[1755195980490,0.71,193.27,193.23,13.25421885]
[1755195980681,0.71,193.26,193.23,13.25421885]
[1755195980888,0.71,193.26,193.24,13.25421885]
[1755195981209,0.71,193.26,193.23,13.25421885]
[1755195981510,5.17357338,193.29,193.2,5.86592515]
[1755195981712,5.17357338,193.29,193.26,13.25421885]
[1755195982006,0.71,193.28,193.26,13.25421885]
[1755195982319,5.17328072,193.31,193.27,13.25421885]
[1755195982480,0.71,193.3,193.28,13.25421885]
[1755195982686,5.88339678,193.3,193.28,13.25421885]
[1755195982907,0.71,193.29,193.25,13.25421885]
[1755195983102,0.06,193.28,193.25,13.25421885]
[1755195983297,0.77,193.28,193.25,13.25421885]
[1755195983502,0.71,193.27,193.25,13.25421885]
[1755195983685,0.06,193.28,193.25,13.25421885]
[1755195983882,0.06,193.28,193.26,13.25421885]
[1755195984195,0.71,193.27,193.24,13.25421885]
[1755195984408,0.06,193.28,193.25,13.25421885]
[1755195984617,0.77,193.28,193.26,13.25421885]
[1755195984910,0.06,193.28,193.26,13.25421885]
[1755195985490,0.06,193.28,193.23,41.22]
[1755195985810,0.71,193.27,193.26,13.25421885]
[1755195986016,0.06,193.28,193.26,13.25421885]
[1755195987185,0.06,193.28,193.23,41.22]
[1755195987410,0.06,193.28,193.26,13.25421885]
[1755195987809,0.06,193.28,193.27,54.45421885]
[1755195988024,0.06,193.28,193.27,55.14421885]
[1755195988194,0.06,193.28,193.27,54.45421885]
[1755195988894,0.06,193.28,193.21,0.69]
[1755195989209,0.06,193.28,193.27,13.25421885]
[1755195989390,0.06,193.28,193.27,54.45421885]
[1755195989711,0.06,193.28,193.27,41.2]
[1755195989909,14.02421885,193.28,193.14,0.69]
[1755195990087,13.25421885,193.24,193.17,13.25421885]
[1755195990295,0.71,193.23,193.19,13.25421885]
[1755195990494,0.06,193.28,193.2,13.25421885]
[1755195990495,0.68,193.26,193.2,13.25421885]
[1755195990701,0.68,193.26,193.17,41.2]
[1755195990702,0.06,193.28,193.24,13.25421885]
[1755195990999,0.06,193.28,193.26,13.25421885]
[1755195991198,0.74,193.28,193.25,41.18]
[1755195991393,0.74,193.28,193.25,54.43421885]
[1755195991596,5.17410875,193.27,193.25,54.43421885]
[1755195991993,5.17410875,193.27,193.22,41.18]
[1755195992194,0.68,193.26,193.22,41.18]
[1755195992403,13.93421885,193.25,193.22,41.18]
[1755195992605,13.25421885,193.23,193.17,13.25421885]
[1755195992806,18.10938064,193.27,193.12,13.25421885]
[1755195992807,13.25421885,193.18,193.12,13.25421885]
[1755195992998,26.68,193.22,193.1,41.18]
[1755195992999,13.25421885,193.15,193.1,41.18]
[1755195993201,13.25421885,193.12,193.07,41.18]
[1755195993407,15.10621557,193.19,193.0,5.2111093]
[1755195993408,13.25421885,193.09,193.03,13.25421885]
[1755195993611,41.18,193.2,193.0,0.03]
[1755195993612,5.18000518,193.05,193.0,13.28421885]
[1755195993816,0.68,193.08,193.02,13.25421885]
[1755195994006,5.17949243,193.07,193.03,13.25421885]
[1755195994521,5.85949243,193.07,193.02,13.25421885]
[1755195994893,5.85819701,193.12,193.06,13.25421885]
[1755195995113,5.17787247,193.13,193.11,13.25421885]
[1755195995321,5.17760834,193.14,193.11,13.25421885]
[1755195995529,5.17760834,193.14,193.08,41.18]
[1755195995695,5.17812758,193.12,193.09,13.25421885]
[1755195996022,5.17812758,193.12,193.08,41.18]
[1755195996023,0.68,193.13,193.1,13.25421885]
[1755195996220,5.85705529,193.16,193.08,46.35910083]
[1755195996517,5.85705529,193.16,193.09,15.10621557]
[1755195996861,0.68,193.19,193.09,15.80621557]
[1755195997133,0.68,193.19,193.15,13.25421885]
[1755195997294,13.25421885,193.2,193.13,41.18]
[1755195997498,13.25421885,193.15,193.09,13.25421885]
[1755195997711,5.17785947,193.13,193.08,13.25421885]
[1755195997919,5.17785947,193.13,193.07,41.18]
[1755195997920,5.85785947,193.13,193.09,13.25421885]
[1755195998154,5.85785947,193.13,193.1,13.25421885]
[1755195998629,39.25421885,193.17,193.1,13.25421885]
[1755195998827,13.62147093,193.18,193.12,13.25421885]
[1755195999129,5.17678728,193.17,193.08,15.80621557]
[1755195999426,0.68,193.16,193.11,13.25421885]
[1755195999637,18.43100613,193.17,193.11,13.25421885]
[1755195999638,0.68,193.15,193.11,13.25421885]
[1755196000018,5.17726649,193.16,193.12,13.25421885]
[1755196000200,5.17726649,193.16,193.13,13.25421885]
[1755196000401,5.17726649,193.16,193.12,13.25421885]
[1755196000837,5.17726649,193.16,193.13,13.25421885]
[1755196001010,5.17678728,193.17,193.13,13.25421885]
[1755196001209,0.68,193.16,193.11,13.25421885]
[1755196001912,0.68,193.15,193.1,13.25421885]
[1755196002111,0.68,193.14,193.1,13.25421885]
[1755196002330,13.25421885,193.16,193.1,13.25421885]
[1755196002930,5.17732332,193.15,193.1,13.25421885]
[1755196003130,0.68,193.14,193.1,13.25421885]
[1755196003332,0.68,193.14,193.11,13.25421885]
[1755196003520,5.17732332,193.15,193.11,13.25421885]
[1755196003910,5.85732332,193.15,193.11,13.25421885]
[1755196004718,5.17732332,193.15,193.08,5.17915698]
[1755196004921,5.17732332,193.15,193.11,8.52776139]
[1755196005114,5.17732332,193.15,193.08,5.17915698]
[1755196005319,5.17732332,193.15,193.11,8.52776139]
[1755196005530,5.17678728,193.17,193.13,8.52776139]
[1755196005732,5.17625135,193.19,193.14,8.52776139]
[1755196005936,5.17625135,193.19,193.09,15.10621557]
[1755196005937,5.17625135,193.19,193.15,8.52776139]
[1755196006133,5.85625135,193.19,193.15,8.52776139]
[1755196006331,0.68,193.18,193.09,15.80621557]
[1755196006516,0.68,193.2,193.09,20.98513777]
[1755196006724,9.20776139,193.2,193.14,8.52776139]
[1755196007040,5.17571554,193.21,193.17,8.52776139]
[1755196007339,5.85571554,193.21,193.16,8.52776139]
[1755196007514,5.85544353,193.23,193.18,8.52776139]
[1755196008031,0.68,193.22,193.18,8.52776139]
[1755196008744,5.17494961,193.24,193.19,8.52776139]
[1755196009033,8.52776139,193.2,193.13,8.52776139]
[1755196009224,9.20776139,193.19,193.12,8.52776139]
[1755196009425,8.52776139,193.17,193.11,75.68776139]
[1755196009633,8.52776139,193.17,193.11,49.68776139]
[1755196009845,8.52776139,193.14,193.11,41.16]
[1755196010056,0.68,193.13,193.07,46.33946236]
[1755196010349,8.52776139,193.16,193.1,8.52776139]
[1755196010542,8.52776139,193.16,193.07,46.33946236]
[1755196010543,8.52776139,193.15,193.07,41.16]
[1755196010747,8.52776139,193.15,193.07,46.33935164]
[1755196010935,13.70481668,193.16,193.1,8.52776139]
[1755196011448,5.85683216,193.17,193.08,15.80621557]
[1755196011653,5.85683216,193.17,193.12,8.52776139]
[1755196012156,5.85683216,193.17,193.13,8.52776139]
[1755196012324,0.68,193.21,193.16,8.52776139]
[1755196012526,0.68,193.21,193.19,8.52776139]
[1755196012746,8.52776139,193.25,193.19,8.52776139]
[1755196013043,0.18,193.24,193.19,8.52776139]
[1755196013447,5.17464424,193.25,193.2,8.52776139]
[1755196013830,26.0,193.24,193.2,8.52776139]
[1755196014024,5.17464424,193.25,193.2,8.52776139]
[1755196014220,0.06,193.26,193.25,5.17464424]
[1755196014432,0.06,193.26,193.25,14.42240563]
[1755196014644,0.06,193.26,193.25,5.89464424]
[1755196014826,0.06,193.26,193.25,21.00085981]
[1755196015029,31.171433,193.37,193.26,15.10621557]
[1755196015345,9.20776139,193.41,193.35,8.52776139]
[1755196015735,35.20776139,193.41,193.35,8.52776139]
[1755196015943,8.52776139,193.4,193.31,15.10621557]
[1755196016141,26.68,193.41,193.34,8.52776139]
[1755196016450,0.68,193.46,193.37,8.52776139]
[1755196016651,0.68,193.46,193.34,0.72]
[1755196016652,13.19800247,193.44,193.38,13.19800247]
[1755196016858,0.68,193.43,193.37,13.19800247]
[1755196017056,0.68,193.43,193.38,13.19800247]
[1755196017365,5.16902718,193.46,193.4,13.19800247]
[1755196017537,12.92077209,193.49,193.43,13.19800247]
[1755196017538,5.84822574,193.49,193.43,13.19800247]
[1755196017738,0.68,193.46,193.42,13.19800247]
[1755196017942,5.16822574,193.49,193.43,13.19800247]
[1755196018155,5.89745384,193.5,193.45,13.19800247]
[1755196018362,0.72946635,193.5,193.45,13.19800247]
[1755196018660,0.04946635,193.5,193.47,13.19800247]
[1755196018850,0.04946635,193.5,193.46,13.19800247]
[1755196019241,0.04946635,193.5,193.47,13.19800247]
[1755196019552,13.24746882,193.5,193.44,54.31800247]
[1755196019758,0.04946635,193.5,193.44,41.12]
[1755196019944,0.04946635,193.5,193.45,13.19800247]
[1755196020142,0.68,193.49,193.44,41.12]
[1755196020341,18.09346567,193.44,193.35,41.84]
[1755196020541,19.04756409,193.44,193.38,13.19800247]
[1755196020756,5.16956162,193.44,193.4,13.19800247]
[1755196020929,5.16956162,193.44,193.42,13.19800247]
[1755196021132,5.16876001,193.47,193.43,13.19800247]
[1755196021365,5.16876001,193.47,193.41,41.1]
[1755196022043,5.16876001,193.47,193.42,13.19800247]
[1755196022458,18.77066004,193.47,193.42,13.19800247]
[1755196022769,31.16846796,193.49,193.45,13.19800247]
[1755196022968,5.16846796,193.49,193.47,13.19800247]
[1755196023356,5.16846796,193.49,193.45,13.19800247]
[1755196023663,5.21745992,193.5,193.48,13.19800247]
[1755196023852,32.01535903,193.5,193.44,13.19800247]
[1755196024047,5.21745992,193.5,193.46,13.19800247]
[1755196024250,5.21745992,193.5,193.45,13.19800247]
[1755196024448,5.16849286,193.48,193.44,13.19800247]
[1755196024659,5.84849286,193.48,193.41,41.1]
[1755196024856,5.84849286,193.48,193.44,13.19800247]
[1755196025151,5.16849286,193.48,193.45,13.19800247]
[1755196025574,5.16849286,193.48,193.41,41.1]
[1755196025875,5.16849286,193.48,193.38,13.19800247]
[1755196025876,13.19800247,193.44,193.38,13.19800247]
[1755196026043,26.68,193.47,193.39,13.19800247]
[1755196026250,0.68,193.47,193.38,0.7]
[1755196026461,5.16849286,193.48,193.44,13.19800247]
[1755196026771,5.16849286,193.48,193.46,13.19800247]
[1755196026970,5.16742455,193.52,193.46,13.19800247]
[1755196027274,5.16742455,193.52,193.47,13.19800247]
[1755196027577,5.84742455,193.52,193.47,13.19800247]
[1755196028078,0.06,193.5,193.47,13.19800247]
[1755196028281,0.06,193.5,193.44,0.7]
[1755196028579,0.06,193.5,193.45,13.19800247]
[1755196028785,0.06,193.5,193.47,13.19800247]
[1755196029075,0.06,193.5,193.46,13.19800247]
[1755196029281,0.06,193.5,193.42,56.88621557]
[1755196029282,13.87800247,193.49,193.42,41.08]
[1755196029488,13.19800247,193.47,193.42,41.08]
[1755196029852,0.68,193.46,193.42,41.08]
[1755196030161,13.19800247,193.44,193.38,54.27800247]
[1755196030368,13.19800247,193.41,193.38,41.08]
[1755196030546,18.36890065,193.39,193.32,13.19800247]
[1755196030886,5.89062089,193.41,193.36,13.19800247]
[1755196031089,5.17062089,193.41,193.38,13.19800247]
[1755196031290,41.06,193.46,193.4,13.19800247]
[1755196031291,13.19800247,193.46,193.4,13.19800247]
[1755196031474,5.16902718,193.46,193.38,41.76]
[1755196031772,5.16792206,193.51,193.45,13.19800247]
[1755196031976,13.19800247,193.53,193.47,13.19800247]
[1755196032181,5.16760243,193.52,193.47,13.19800247]
[1755196032482,5.22796077,193.5,193.46,41.06]
[1755196032670,5.94796077,193.5,193.46,41.06]
[1755196033067,13.19800247,193.47,193.41,13.19800247]
[1755196033270,13.19800247,193.45,193.39,13.19800247]
[1755196033452,0.72,193.46,193.39,54.25800247]
[1755196033658,0.72,193.46,193.4,13.19800247]
[1755196033855,13.19800247,193.47,193.41,13.19800247]
[1755196034475,13.19800247,193.45,193.4,13.19800247]
[1755196034677,5.16956162,193.44,193.4,13.19800247]
[1755196034879,26.06,193.5,193.43,13.19800247]
[1755196035082,31.22818315,193.5,193.45,13.19800247]
[1755196035263,5.22807632,193.5,193.45,0.7]
[1755196035462,0.72,193.49,193.44,41.06]
[1755196035672,0.72,193.49,193.44,54.25800247]
[1755196035972,18.42607879,193.5,193.44,54.25800247]
[1755196036154,0.72,193.49,193.44,54.25800247]
[1755196036354,13.19800247,193.47,193.44,41.06]
[1755196036577,5.16956162,193.44,193.34,0.7]
[1755196036875,13.19800247,193.43,193.37,13.19800247]
[1755196037871,5.16956162,193.44,193.37,0.7]
[1755196038186,5.16956162,193.44,193.39,13.19800247]
[1755196038379,0.72,193.49,193.4,0.7]
[1755196038584,13.19800247,193.47,193.41,13.19800247]
[1755196038881,13.19800247,193.45,193.39,13.19800247]
[1755196039082,13.19800247,193.42,193.36,41.04]
[1755196039287,13.19800247,193.39,193.36,41.04]
[1755196039486,18.09159515,193.46,193.31,13.19800247]
[1755196039487,13.19800247,193.37,193.31,13.19800247]
[1755196039691,13.19800247,193.37,193.32,41.04]
[1755196040062,0.72,193.38,193.32,41.74]
[1755196040290,13.19800247,193.39,193.33,13.19800247]
[1755196040796,0.72,193.45,193.38,13.19800247]
[1755196041090,5.16849286,193.48,193.44,13.19800247]
[1755196041705,5.16849286,193.48,193.43,13.19800247]
[1755196041881,0.06,193.5,193.41,41.74]
[1755196041882,0.06,193.5,193.47,13.19800247]
[1755196042199,0.06,193.5,193.48,13.19800247]
[1755196042771,0.06,193.5,193.46,41.04]
[1755196042995,0.72,193.49,193.46,41.04]
[1755196043168,13.19800247,193.47,193.41,13.19800247]
[1755196043372,13.19800247,193.47,193.39,41.04]
[1755196043373,13.19800247,193.45,193.39,54.23800247]
[1755196043594,13.19800247,193.44,193.39,41.04]
[1755196043774,13.91800247,193.43,193.39,41.04]
[1755196043976,13.19800247,193.41,193.31,0.7]
[1755196044171,13.19800247,193.4,193.34,13.19800247]
[1755196044494,13.19800247,193.39,193.33,13.19800247]
[1755196044705,5.17116558,193.38,193.33,13.19800247]
[1755196044986,13.91800247,193.42,193.36,13.19800247]
[1755196045192,5.89010665,193.42,193.36,13.19800247]
[1755196045372,19.08810912,193.42,193.36,13.19800247]
[1755196045567,0.06,193.5,193.38,13.19800247]
[1755196045568,12.92139154,193.48,193.38,13.19800247]
[1755196045791,13.19800247,193.45,193.39,13.19800247]
[1755196046176,13.19800247,193.43,193.37,54.21800247]
[1755196046389,13.19800247,193.42,193.37,41.02]
[1755196046591,13.19800247,193.4,193.37,41.02]
[1755196046793,5.17116558,193.38,193.37,41.02]
[1755196046999,5.17116558,193.38,193.33,67.02]
[1755196047177,18.36916805,193.38,193.33,54.21800247]
[1755196047588,0.72,193.37,193.33,41.02]
[1755196047802,0.72,193.37,193.33,54.21800247]
[1755196048013,5.17116558,193.38,193.33,41.02]
[1755196048014,18.36916805,193.38,193.33,41.02]
[1755196048180,0.72,193.36,193.33,41.02]
[1755196048582,0.72,193.36,193.27,20.9802587]
[1755196048583,0.72,193.35,193.3,13.19800247]
[1755196048800,18.37050544,193.33,193.26,37.23]
[1755196048973,18.37050544,193.33,193.27,54.21800247]
[1755196049298,18.37050544,193.33,193.26,0.03]
[1755196049299,13.19800247,193.3,193.26,0.03]
[1755196049499,18.1037604,193.33,193.26,0.03]
[1755196049500,13.91800247,193.29,193.26,0.03]
[1755196049796,18.1037604,193.33,193.24,0.03]
[1755196049797,13.19800247,193.27,193.24,0.03]
[1755196050097,13.91800247,193.26,193.24,0.03]
[1755196050274,0.72,193.25,193.24,0.03]
[1755196050472,13.91800247,193.25,193.24,0.03]
[1755196050874,19.09264671,193.25,193.24,0.03]
[1755196051102,5.89464424,193.25,193.24,0.03]
[1755196051611,5.17432938,193.27,193.24,0.03]
[1755196051907,5.17250297,193.33,193.24,0.03]